Workbook

Sheet 总成绩
A1: 汇川区2019年公开考试选调工作人员总成绩公示
A2: 序号 | B2: 姓名 | C2: 准考证号 | D2: 报考单位 | E2: 报考职位 | F2: 笔试成绩 | G2: 加分 | H2: 面试 成绩 | I2: 总成绩 | J2: 名次 | K2: 是否进入体检
A3: 1 | B3: 杨砚 | C3: 20190104 | D3: 中共遵义市汇川区委办公室 | E3: 01 | F3: 66.68 | H3: 82.60 | I3: =(F3+G3)*0.4+H3*0.6 -> 76.23 | J3: 1 | K3: 是
A4: 2 | B4: 罗波 | C4: 20190110 | D4: 中共遵义市汇川区委办公室 | E4: 01 | F4: 68.90 | H4: 77.50 | I4: 74.06 | J4: 2 | K4: 是
A5: 3 | B5: 李倩 | C5: 20190107 | D5: 中共遵义市汇川区委办公室 | E5: 01 | F5: 70.11 | G5: 0.40 | H5: 75.50 | I5: 73.50 | J5: 3 | K5: 否
A6: 4 | B6: 吴换梅 | C6: 20190102 | D6: 中共遵义市汇川区委办公室 | E6: 01 | F6: 70.92 | H6: 75.20 | I6: 73.49 | J6: 4 | K6: 否
A7: 5 | B7: 吴培 | C7: 20190101 | D7: 中共遵义市汇川区委办公室 | E7: 01 | F7: 71.40 | H7: 74.20 | I7: 73.08 | J7: 5 | K7: 否
A8: 6 | B8: 曾显华 | C8: 20190108 | D8: 中共遵义市汇川区委办公室 | E8: 01 | F8: 67.57 | G8: 0.40 | H8: 76.00 | I8: 72.79 | J8: 6 | K8: 否
A9: 7 | B9: 欧恒燕 | C9: 20190109 | D9: 中共遵义市汇川区委办公室 | E9: 01 | F9: 68.38 | G9: 0.60 | H9: 74.20 | I9: 72.11 | J9: 7 | K9: 否
A10: 8 | B10: 王晨熹 | C10: 20190111 | D10: 中共遵义市汇川区委办公室 | E10: 01 | F10: 68.46 | H10: 74.40 | I10: 72.02 | J10: 8 | K10: 否
A11: 9 | B11: 朱小海 | C11: 20190105 | D11: 中共遵义市汇川区委办公室 | E11: 01 | F11: 65.27 | G11: 0.60 | H11: 76.00 | I11: 71.95 | J11: 9 | K11: 否
A12: 10 | B12: 张璇 | C12: 20190106 | D12: 中共遵义市汇川区委办公室 | E12: 01 | F12: 65.72 | H12: 75.00 | I12: 71.29 | J12: 10 | K12: 否
A13: 11 | B13: 张程程 | C13: 20190113 | D13: 中共遵义市汇川区委宣传部 | E13: 02 | F13: 63.32 | G13: 0.20 | H13: 68.20 | I13: 66.33 | J13: 1 | K13: 否
A14: 12 | B14: 任莉 | C14: 20190112 | D14: 中共遵义市汇川区委宣传部 | E14: 02 | F14: 69.53 | H14: 缺考 | I14: 27.81 | J14: 2 | K14: 否
A15: 13 | B15: 廖浪 | C15: 20190114 | D15: 遵义市汇川区人民政府办公室 | E15: 03 | F15: 64.25 | H15: 88.00 | I15: =(F15+G15)*0.4+H15*0.6 -> 78.50 | J15: 1 | K15: 是
A16: 14 | B16: 李珊珊 | C16: 20190115 | D16: 遵义市汇川区财政局 | E16: 04 | F16: 66.11 | G16: 0.20 | H16: 66.00 | I16: 66.12 | J16: 1 | K16: 否
A17: 15 | B17: 杨宇 | C17: 20190116 | D17: 遵义市汇川区综合行政执法局 | E17: 05 | F17: 65.52 | H17: 74.80 | I17: 71.09 | J17: 1 | K17: 是
A18: 16 | B18: 周静 | C18: 20190117 | D18: 遵义市汇川区工业经济局 | E18: 06 | F18: 65.90 | G18: 0.20 | H18: 73.80 | I18: 70.72 | J18: 1 | K18: 是
A19: 17 | B19: 陈静 | C19: 20190118 | D19: 遵义市汇川区司法局 | E19: 07 | F19: 75.39 | G19: 0.20 | H19: 70.00 | I19: 72.24 | J19: 1 | K19: 是
A20: 18 | B20: 杨静宜 | C20: 20190119 | D20: 遵义市汇川区司法局 | E20: 07 | F20: 59.18 | G20: 0.40 | H20: 74.60 | I20: 68.59 | J20: 2 | K20: 否
A21: 19 | B21: 舒晓莉 | C21: 20190120 | D21: 遵义市汇川区司法局团泽司法所 | E21: 08 | F21: 71.68 | G21: 0.40 | H21: 74.00 | I21: 73.23 | J21: 1 | K21: 是
A22: 20 | B22: 赵沙沙 | C22: 20190201 | D22: 遵义市汇川区司法局高坪司法所 | E22: 09 | F22: 71.10 | H22: 73.60 | I22: 72.60 | J22: 1 | K22: 是
A23: 21 | B23: 胡德波 | C23: 20190122 | D23: 遵义市汇川区司法局高坪司法所 | E23: 09 | F23: 67.93 | H23: 75.60 | I23: 72.53 | J23: 2 | K23: 否
A24: 22 | B24: 韩丽君 | C24: 20190121 | D24: 遵义市汇川区司法局高坪司法所 | E24: 09 | F24: 66.33 | G24: 0.60 | H24: 71.80 | I24: 69.85 | J24: 3 | K24: 否
A25: 23 | B25: 娄华 | C25: 20190205 | D25: 遵义市汇川区非公有制经济发展侵权投诉中心 | E25: 10 | F25: 64.96 | G25: 0.80 | H25: 73.20 | I25: 70.22 | J25: 1 | K25: 是
A26: 24 | B26: 柯容 | C26: 20190202 | D26: 遵义市汇川区非公有制经济发展侵权投诉中心 | E26: 10 | F26: 62.83 | H26: 72.40 | I26: 68.57 | J26: 2 | K26: 否
A27: 25 | B27: 谭兴秀 | C27: 20190204 | D27: 遵义市汇川区非公有制经济发展侵权投诉中心 | E27: 10 | F27: 63.21 | G27: 0.20 | H27: 70.20 | I27: 67.48 | J27: 3 | K27: 否
A28: 26 | B28: 宋静 | C28: 20190203 | D28: 遵义市汇川区非公有制经济发展侵权投诉中心 | E28: 10 | F28: 64.61 | G28: 1.00 | H28: 67.80 | I28: 66.92 | J28: 4 | K28: 否
A29: 27 | B29: 钱润洪 | C29: 20190206 | D29: 遵义市汇川区投资促进局 | E29: 11 | F29: 71.83 | G29: 0.20 | H29: 79.80 | I29: 76.69 | J29: 1 | K29: 是
A30: 28 | B30: 唐艳 | C30: 20190208 | D30: 遵义市汇川区投资促进局 | E30: 11 | F30: 57.46 | G30: 1.20 | H30: 84.20 | I30: 73.98 | J30: 2 | K30: 是
A31: 29 | B31: 葛欣 | C31: 20190209 | D31: 遵义市汇川区投资促进局 | E31: 11 | F31: 71.72 | G31: 0.20 | H31: 70.80 | I31: 71.25 | J31: 3 | K31: 否
A32: 30 | B32: 吴珊 | C32: 20190207 | D32: 遵义市汇川区投资促进局 | E32: 11 | F32: 61.65 | H32: 取消面试资格 | I32: 24.66 | J32: 4 | K32: 否
A33: 31 | B33: 邹振华 | C33: 20190212 | D33: 遵义市汇川区社会保险事业局 | E33: 12 | F33: 65.95 | H33: 84.60 | I33: =(F33+G33)*0.4+H33*0.6 -> 77.14 | J33: 1 | K33: 是
A34: 32 | B34: 彭莉 | C34: 20190211 | D34: 遵义市汇川区社会保险事业局 | E34: 12 | F34: 65.80 | G34: 0.60 | H34: 75.20 | I34: =(F34+G34)*0.4+H34*0.6 -> 71.68 | J34: 2 | K34: 否
A35: 33 | B35: 王芳 | C35: 20190213 | D35: 遵义市汇川区社会保险事业局 | E35: 12 | F35: 61.12 | H35: 77.40 | I35: =(F35+G35)*0.4+H35*0.6 -> 70.89 | J35: 3 | K35: 否
A36: 34 | B36: 王旭 | C36: 20190210 | D36: 遵义市汇川区社会保险事业局 | E36: 12 | F36: 62.27 | G36: 0.40 | H36: 缺考 | I36: 25.07 | J36: 4 | K36: 否
A37: 35 | B37: 任登平 | C37: 20190215 | D37: 遵义市汇川区社会保险事业局 | E37: 13 | F37: 65.78 | H37: 85.40 | I37: =(F37+G37)*0.4+H37*0.6 -> 77.55 | J37: 1 | K37: 是
A38: 36 | B38: 王素银 | C38: 20190216 | D38: 遵义市汇川区社会保险事业局 | E38: 13 | F38: 63.06 | G38: 0.20 | H38: 缺考 | I38: 25.30 | J38: 2 | K38: 否
A39: 37 | B39: 邹玉婷 | C39: 20190219 | D39: 遵义市汇川区就业局 | E39: 14 | F39: 70.93 | G39: 1.00 | H39: 90.60 | I39: =(F39+G39)*0.4+H39*0.6 -> 83.13 | J39: 1 | K39: 是
A40: 38 | B40: 邓小龙 | C40: 20190217 | D40: 遵义市汇川区就业局 | E40: 14 | F40: 69.62 | G40: 0.20 | H40: 88.60 | I40: =(F40+G40)*0.4+H40*0.6 -> 81.09 | J40: 2 | K40: 是
A41: 39 | B41: 刘锋 | C41: 20190221 | D41: 遵义市汇川区就业局 | E41: 14 | F41: 69.59 | G41: 0.20 | H41: 85.00 | I41: =(F41+G41)*0.4+H41*0.6 -> 78.92 | J41: 3 | K41: 否
A42: 40 | B42: 史俊勇 | C42: 20190220 | D42: 遵义市汇川区就业局 | E42: 14 | F42: 61.20 | G42: 0.40 | H42: 84.80 | I42: =(F42+G42)*0.4+H42*0.6 -> 75.52 | J42: 4 | K42: 否
A43: 41 | B43: 曾祥津 | C43: 20190218 | D43: 遵义市汇川区就业局 | E43: 14 | F43: 66.20 | G43: 0.20 | H43: 77.20 | I43: =(F43+G43)*0.4+H43*0.6 -> 72.88 | J43: 5 | K43: 否
